Cogmind - Beta 9.4 @@@ ROGUE MODE // 2020.02.02 @ 02:57:37 Player: Aaron Gorton Result: Destroyed by as-64567 with Assembled Heavy Rifle Performance ------------- Evolutions (0) 0 Regions Visited (2) 400 Robots Destroyed (5) 25 Value Destroyed (40) 40 Prototype IDs (0) 0 Alien Tech Used (0) 0 Bonus (0) 0 TOTAL SCORE: 465 Bonus ------- None Cogmind --------- Core Integrity 0/250 Matter 242/300 Energy 550/550 System Corruption 0% Temperature Cool (0) Movement Walking (150) Ox1 Location -10/Mines Parts ------- > --- POWER (1) -------- Ion Engine > --- PROPULSION (2) --- Aluminum Leg Compact Wheel > --- UTILITY (2) ------ Small Storage Unit Large Battery > --- WEAPON (2) ------- (None) > --- INVENTORY (6) ---- Ion Engine Medium Matter Pod (0) Seismic Analyzer Peak State ------------ > --- POWER ------------ Ion Engine > --- PROPULSION ------- Compact Wheel Compact Wheel > --- UTILITY ---------- Small Storage Unit Terrain Scan Processor > --- WEAPON ----------- Medium Laser Assault Rifle > --- INVENTORY -------- Ion Engine Aluminum Leg Aluminum Leg Structural Scanner Small Laser [Rating: 8] Favorites ----------- Power Ion Engine Engine Ion Engine Propulsion Compact Wheel Leg Aluminum Leg Wheel Compact Wheel Utility Small Storage Unit Device Structural Scanner Storage Small Storage Unit Processor Terrain Scan Processor Weapon Assault Rifle Energy Gun Small Laser Ballistic Gun Assault Rifle Build | -11 -10 -10 ------- Run | Scr Mat Min Slots Evolved . | . . . Power . | . . . Propulsion . | . . . Utility . | . . . Weapon . | . . . Parts Attached 16 | 6 5 5 Power 2 | 1 . 1 Engine 2 | 1 . 1 Core . | . . . Reactor . | . . . Propulsion 5 | 2 . 3 Treads . | . . . Leg 2 | . . 2 Wheel 3 | 2 . 1 Hover . | . . . Flight . | . . . Utility 6 | 1 4 1 Device 2 | . 2 . Storage 3 | 1 1 1 Processor 1 | . 1 . Hackware . | . . . Protection . | . . . Artifact . | . . . Weapon 3 | 2 1 . Energy Gun 2 | 1 1 . Energy Cannon . | . . . Ballistic Gun 1 | 1 . . Ballistic Cannon . | . . . Launcher . | . . . Special Weapon . | . . . Impact Weapon . | . . . Slashing Weapon . | . . . Piercing Weapon . | . . . Special Melee Weapon . | . . . Unidentified Prototypes . | . . . Parts Lost 5 | . . 5 Power . | . . . Propulsion 2 | . . 2 Utility 1 | . . 1 Weapon 2 | . . 2 Highest Loss Streak 4 | . . 4 Average Slot Usage (%) 80 | . 92 62 Engine 14 | . 14 14 Leg 7 | . . 16 Wheel 21 | . 28 11 Device 1 | . 3 . Storage 14 | . 14 15 Processor 2 | . 4 . Energy Gun 8 | . 14 1 Ballistic Gun 9 | . 14 2 Naked Turns . | . . . Heaviest Build 14 | 12 14 14 Greatest Support 32 | 32 32 32 Greatest Overweight (x) 1 | . . 1 Average Overweight (x) . | . . . Largest Inventory Capacity 6 | 6 6 6 Average Capacity 5 | 5 6 6 Most Carried 6 | 6 6 6 Average Carried 4 | 3 5 4 Final Capacity 6 | 6 6 6 Final Carried 6 | 6 6 3 Class Distribution -------------------- 100% | Mutant Dominant Class ---------------- Mutant | -10/Materials Mutant | -10/Mines Resources | -11 -10 -10 ----------- Run | Scr Mat Min Matter Collected 289 | 260 29 . Remotely . | . . . Salvage Created 108 | . 108 . Parts 11 | . 11 . Haulers Intercepted . | . . . Recyclers Shooed . | . . . Parts Field Recycled . | . . . Retrieved Matter . | . . . Parts Self-Destructed . | . . . Prevented . | . . . Kills | -11 -10 -10 ------- Run | Scr Mat Min Combat Hostiles Destroyed 3 | . 3 . Guns 3 | . 3 . Classes Destroyed 2 | . 2 . Builder 2 | . 2 . Swarmer 3 | . 3 . Best Kill Streak 4 | . 4 . Combat Bots Only 3 | . 3 . Max Kills in Single Turn 1 | . 1 . Gunslinging . | . . . Exploded . | . . . Melee . | . . . Uniques/NPCs Destroyed . | . . . Combat | -11 -10 -10 -------- Run | Scr Mat Min Damage Taken 765 | . 97 668 Core 265 | . 31 234 Absorbed by Shields . | . . . Core Remaining (%) 100 | 100 . . Volleys Fired 17 | . 8 9 Largest 2 | . 2 2 Hottest 70 | . 70 70 Shots Fired 29 | . 16 13 Gun 29 | . 16 13 Cannon . | . . . Launcher . | . . . Special . | . . . Kinetic 17 | . 8 9 Thermal 12 | . 8 4 Explosive . | . . . Electromagnetic . | . . . Robot Hit Streak 4 | . 3 4 Robot Miss Streak 7 | . 7 1 Penetration Max . | . . . Secondary Targets 1 | . 1 . Max Gunslinging Chain 1 | . 1 . Shots Hit Robots 16 | . 6 10 Core Hits 12 | . 6 6 Critical Hits . | . . . Critical Kills . | . . . Critical Parts Destroyed . | . . . Melee Attacks . | . . . Impact . | . . . Slashing . | . . . Piercing . | . . . Sneak Attacks . | . . . Combat Hostiles . | . . . Follow-up Attacks . | . . . Damage Inflicted 265 | . 110 155 Guns 249 | . 110 139 Cannons . | . . . Explosions . | . . . Melee . | . . . Ramming 16 | . . 16 Kinetic 149 | . 48 101 Thermal 100 | . 62 38 Explosive . | . . . Electromagnetic . | . . . Impact . | . . . Slashing . | . . . Piercing . | . . . Highest Corruption . | . . . Average Corruption . | . . . Corruption Purged . | . . . Overload Shots . | . . . Overflow Damage . | . . . Projectiles . | . . . Explosions . | . . . Melee . | . . . Knockbacks . | . . . Impact . | . . . Kinetic . | . . . Secondary . | . . . Self-Inflicted Damage 3 | . . 3 Shots . | . . . Rammed 10 | . . 10 Targets Rammed 11 | . . 11 Kicked 1 | . . 1 Crushed . | . . . Highest Temperature 114 | . 45 114 Average Temperature 50 | . 22 68 Received Heat Transfer 273 | . 15 258 Siege Activations . | . . . Robots Corrupted . | . . . Combat Hostiles . | . . . Parts Fried . | . . . Impact Corruptions . | . . . Robots Melted . | . . . Combat Hostiles . | . . . Parts Melted . | . . . Heat Transferred 284 | . 173 111 Parts Sabotaged . | . . . Parts Stolen . | . . . Parts Stripped . | . . . Power Chain Reactions . | . . . Missiles Intercepted . | . . . Alert | -11 -10 -10 ------- Run | Scr Mat Min Peak Influence 80 | . 80 46 Average Influence 13 | . 25 10 Maximum Alert Level . | . . . Low Security (%) 100 | 100 100 100 Level 1 . | . . . Level 2 . | . . . Level 3 . | . . . Level 4 . | . . . Level 5 . | . . . High Security . | . . . Max Security . | . . . Squads Dispatched 1 | . 1 . Investigation . | . . . Extermination . | . . . Reinforcement 1 | . 1 . Assault . | . . . Garrison . | . . . Intercept . | . . . Construction Impeded . | . . . Haulers Reinforced . | . . . Stealth | -11 -10 -10 --------- Run | Scr Mat Min Distress Signals 1 | . . 1 Communications Jammed . | . . . Distress Signals . | . . . Times Spotted 14 | . 5 9 Peak Tracking Total 7 | . 4 7 Tactical Retreats 1 | . . 1 Traps | -11 -10 -10 ------- Run | Scr Mat Min Traps Triggered . | . . . Indirectly . | . . . Trap Hack Attempts . | . . . Triggered . | . . . Disarmed . | . . . Reprogrammed . | . . . Reused . | . . . Traps Extracted . | . . . Installed . | . . . Triggered . | . . . Machines | -11 -10 -10 ---------- Run | Scr Mat Min Machines Disabled . | . . . Max in Single Turn . | . . . Machines Sabotaged . | . . . Garrisons Compromised . | . . . Overloaded Fab Kills . | . . . Fab Network Shutdowns . | . . . Hacking | -11 -10 -10 --------- Run | Scr Mat Min Machines Accessed . | . . . Terminals . | . . . Fabricators . | . . . Repair Stations . | . . . Recycling Units . | . . . Scanalyzers . | . . . Garrison Access . | . . . Total Hacks . | . . . Successful . | . . . Failed . | . . . Catastrophic . | . . . Database Lockouts . | . . . Manual . | . . . Terminals . | . . . Fabricators . | . . . Repair Stations . | . . . Recycling Units . | . . . Scanalyzers . | . . . Garrison Access . | . . . Terminal Hacks . | . . . Fabricator Hacks . | . . . Repair Station Hacks . | . . . Recycling Unit Hacks . | . . . Scanalyzer . | . . . Garrison Access Hacks . | . . . Unauthorized Hacks . | . . . Terminals . | . . . Fabricators . | . . . Repair Stations . | . . . Recycling Units . | . . . Scanalyzers . | . . . Garrison Access . | . . . Data Cores Recovered . | . . . Used . | . . . Hacking Detections . | . . . Full Trace Events . | . . . Feedback Events . | . . . Feedback Blocked . | . . . Robot Schematics Acquired . | . . . Robots Built . | . . . Matter . | . . . Time . | . . . Total Robot Build Rating . | . . . Part Schematics Acquired . | . . . Parts Built . | . . . Matter . | . . . Time . | . . . Total Part Build Rating . | . . . Parts Repaired . | . . . Time . | . . . Parts Recycled . | . . . Recycled Matter . | . . . Retrieved Matter . | . . . Retrieved Components . | . . . Parts Scanalyzed . | . . . Part Schematics Acquired . | . . . Parts Damaged . | . . . Bothacking | -11 -10 -10 ------------ Run | Scr Mat Min Used RIF Installer . | . . . Robots Hacked . | . . . Non-combat . | . . . Combat . | . . . Robot Hacks Applied . | . . . Relay Couplers Released . | . . . Robots Rewired . | . . . Allies Hacked . | . . . Hacks Repelled . | . . . Allies | -11 -10 -10 -------- Run | Scr Mat Min Total Allies . | . . . Largest Group . | . . . Highest-Rated Group . | . . . Highest-Rated Ally . | . . . Total Orders . | . . . Ally Attacks . | . . . Total Damage . | . . . Kills . | . . . Allies Corrupted . | . . . Allies Melted . | . . . Intel | -11 -10 -10 ------- Run | Scr Mat Min Robot Analysis Total . | . . . Derelict Logs Recovered . | . . . Drone Launches . | . . . Drone Recoveries . | . . . Exploration | -11 -10 -10 ------------- Run | Scr Mat Min Turns Passed 326 | 83 138 105 Spaces Moved 229 | 71 102 56 Core 12 | 12 . . Treads . | . . . Legs 30 | . . 30 Wheels 187 | 59 102 26 Hover . | . . . Flight . | . . . Fastest Speed 50 | 50 100 100 Average Speed 100 | 91 100 113 Slowest Speed 150 | 100 100 150 Overloaded Moves . | . . . Propulsion Burnouts . | . . . Robots Hopped . | . . . Cave-ins Triggered . | . . . Exploration Rate (%) 12 | 4 15 19 Regions Visited 2 Branch Regions 1 Pre-discovered Areas . | . . . Known Exits Taken . | . . . Unknown Exits Taken 2 | 1 1 . Scrap Searched . | . . . Spaces Dug . | . . . Terrain Destroyed . | . . . Melee . | . . . Projectile . | . . . AOE . | . . . Actions | -11 -10 -10 --------- Run | Scr Mat Min Total 290 | 88 121 81 Wait . | . . . Move 227 | 70 101 56 Hop . | . . . Pick Up 16 | 12 4 . Fast Attach 1 | . 1 . Attach 9 | 6 . 3 Detach . | . . . Swap 6 | . 4 2 Drop 3 | . 3 . Fire 17 | . 8 9 Melee . | . . . Ram . | . . . Kick 11 | . . 11 Crush . | . . . Escape Stasis . | . . . Rewire . | . . . Trap . | . . . Miscellaneous . | . . . Route ------- -11/Scrapyard -10/Materials -10/Mines History --------- Turn | Location | Event 22 | -11/Scrapyard | Discovered new exit (range 16) 84 | -11/Scrapyard | Entered Materials 152 | -10/Materials | Discovered new exit (range 14) 222 | -10/Materials | Entered Mines 266 | -10/Mines | Core integrity fell below 50% 272 | -10/Mines | Assembled infested the area 281 | -10/Mines | Lost 4 parts (1n1u2w) 284 | -10/Mines | Core integrity fell below 20% 314 | -10/Mines | Build established: Mutant 327 | -10/Mines | Destroyed by as-64567 with Assembled Heavy Rifle Last Messages --------------- 00250_ Com. Wheel destroyed. 00267_ Kicked U-05 Engineer out of the way. 00267_ U-05 Engineer sends out distress signal. 00268_ Slammed into S-10 Pest. 00272_ ALERT: Infestation in the mines, dispatching Demolisher response squad. 00274_ C-30 ARC bursts open, deploying its payload. 00274_ D-53 Grenadier unfolds itself. 00275_ K-01 Serf collects debris. 00275_ Slammed into S-10 Pest. 00276_ K-01 Serf collects debris. 00277_ Slammed into S-10 Pest. 00278_ K-01 Serf cleans the Seismic Survey Station. 00279_ Slammed into S-10 Pest. 00280_ Slammed into G-47 Trooper. 00281_ Slammed into G-34 Mercenary. 00283_ Destabilizing: Short circuit. 00283_ Broken Aluminum Leg permanently disabled. 00291_ Broken Aluminum Leg destroyed. 00302_ S-10 Pest destroyed. Map ----- +----------------------------------------------------+ | ?????????????????????????????????? | | ?????????????????????????????????? | | ?????????????????????????????????? | | ?????????????????????????????????? | | ?????????????????????????????????? | | ?????????????????????????????????? | | ?????????????????????????????????? | | ?????????????????????????????????? | | ?????????????????????????????????? | | ?????????????????????????????????? | | ?????????????????????????????????? | | ?????????????????????????????????? | | ?????????????????????????????????? | | ????????????????????????? ???????? | | ????????????????????????? ??????? | | ?????????????????????????? ??????? | | ?????????????????????????? ##????? | | ?????????????????????????? ##??? | | ?????????????????????????? #??? | | ??????????????????????????? #??? | | ??????????????????????????? #??? | | ??????????????????????????? #??? | | ???????????????????????????# #??? | | ???????????????????####????# #??? | | ?????????????????### %=##### #??? | | ????????????????## %=[@ #??? | | ??????????# a a*%%= #??? | | ??????????# $ * =#### #??? | | ???????????##### #???# #??? | | ???????????????# ????# #??? | | ???????????????## ?????# #??? | | ???######???????#### ?????# #??? | | ??? #?????????#% ?????# #??? | | ? #?????????#a=#?????# #??? | | ?"" """ #?????????#a ###???# #??? | | """ """ #????????##a ##### #??? | | """ """ #???????## # #??? | | " #???????# # #??? | | "%"""" ####????# ## ## #??? | | """ #????# # ## ### #??? | | """ ## #????#?# ## ### #??? | | ## #??????# ## #?# ##??? | | ########### ########%## ### ##??? | | ??????????# ##?? | | ??????????# """ #?? | | ??????????######### """ #?? | | ??????????????????# """ #?? | | ??????????????????## #?? | | ???????????????????## ## ##?? | | ????????????????????###########??? | +----------------------------------------------------+ Best States ------------- Heat Dissipation 25 Energy Generation 10 Energy Capacity 550 Matter Stores 300 Matter Capacity 300 Sight Range 16 Terrain Scan Density 85 Evasion (%) 50 Item Schematics ----------------- None Robot Schematics ------------------ None Fabricated ------------ Nothing Alien Tech Used ----------------- None Achievements -------------- Storm Trooper Challenges ------------ None Game ------ Seed EnhancedDisruptionPlating Manual? 0 Play Time 00:17:19 Cumulative 9.1 hours Start 2020.02.02 @ 02:43:25 End 2020.02.02 @ 02:57:37 Sessions 1 Manual Loads 0 Difficulty Rogue Special Mode None Game No. 12 Rogue 12 Adventurer 0 Explorer 0 Win Type - Total 0 Types 0/0/0/0/0/0/0 Lore% 3 Gallery% 12 Achievement% 8 Wizard Run 0 Options --------- ASCII 0 Keyboard 0 Movement Mouse Keybinds 0 Fullscreen 1 Font 18/SmallcapsGlow Map View 76x50 Tactical HUD 1 Map Filters NONE Filters NONE Steam 1 RUN: 135f9cd4-4122-4054-a1a6-4dd96fbe5a48